lending/lending_fUSD_20250424
["ID","MTS","AMOUNT","RATE_DAILY","PERIOD"]
[358895770,1745532643710,-528.684048,0.000249,2]
[358895773,1745532643720,-361.422959,0.000249,7]
[358895775,1745532643731,-361.422959,0.000249,7]
[358895777,1745532643741,-173.05972,0.000249,7]
[358895779,1745532643752,-397.708193,0.000249,7]
[358895781,1745532643762,-397.708193,0.000249,7]
[358895783,1745532643773,-179.530242,0.000249,7]
[358895785,1745532643783,-179.530242,0.000249,7]
[358895787,1745532643794,-151.0,0.000249,7]
[358895789,1745532643804,-151.0,0.000249,7]
[358895791,1745532643814,-397.708193,0.000249,7]
[358895793,1745532643824,-397.708193,0.000249,7]
[358895795,1745532643835,-380.302379,0.000249,7]
[358895797,1745532643845,-392.342569,0.000249,7]
[358895800,1745532643856,-380.302379,0.000249,7]
[358895802,1745532643867,-392.342569,0.000249,7]
[358895804,1745532643877,-151.0,0.000249,7]
[358895806,1745532643887,-151.0,0.000249,7]
[358895808,1745532643898,-151.0,0.000249,7]
[358895810,1745532643908,-1524.356346,0.000249,7]
[358895812,1745532643918,-151.0,0.000249,7]
[358895814,1745532643928,-151.0,0.000249,7]
[358895816,1745532643938,-151.0,0.000249,7]
[358895818,1745532643949,-151.0,0.000249,7]
[358895820,1745532643959,-235.761736,0.000249,7]
[358895822,1745532643972,-198.164087,0.000249,7]
[358895825,1745532643987,-198.164087,0.000249,7]
[358895827,1745532643999,-198.164087,0.000249,7]
[358895829,1745532644010,-198.164087,0.000249,7]
[358895831,1745532644020,-281.406446,0.000249,7]
[358895833,1745532644030,-281.406446,0.000249,7]
[358895835,1745532644041,-281.406446,0.000249,7]
[358895837,1745532644051,-281.406446,0.000249,7]
[358895839,1745532644061,-201.154027,0.000249,7]
[358895842,1745532644071,-201.154027,0.000249,7]
[358895844,1745532644082,-201.154027,0.000249,7]
[358895846,1745532644093,-201.154027,0.000249,7]
[358895848,1745532644104,-256.137207,0.000249,7]
[358895850,1745532644114,-256.137207,0.000249,7]
[358895852,1745532644124,-256.137207,0.000249,7]
[358895854,1745532644135,-256.137207,0.000249,7]
[358895856,1745532644144,-248.499628,0.000249,7]
[358895858,1745532644155,-248.499628,0.000249,7]
[358895861,1745532644165,-215.0738,0.0002492,2]
[358895863,1745532644176,-154.0,0.00024932,2]
[358895865,1745532644186,-522.0,0.00024932,2]
[358895867,1745532644196,-154.0,0.00025,2]
[358895869,1745532644206,-522.0,0.00025,2]
[358895871,1745532644216,-450.0,0.00025,2]
[358895873,1745532644226,-522.0,0.00025205,2]
[358895875,1745532644236,-301.31,0.00025288,2]
[358895877,1745532644247,-3157.3723253,0.00025362,2]
[358895879,1745532644257,-522.0,0.00025479,2]
[358895881,1745532644267,-501.58818391,0.00025656,2]
[358895884,1745532644277,-500.0,0.00025658,2]
[358895886,1745532644288,-500.0,0.00025658,2]
[358895887,1745532644298,-325.65778398,0.00025658,2]
[358895888,1745532644308,-522.0,0.00025753,2]
[358895890,1745532644318,-373.87,0.00025785,2]
[358895892,1745532644328,-167.28667142,0.00025804,2]
[358895894,1745532644338,-1868.44214341,0.00025885,3]
[358895898,1745532644363,-2219.74144614,0.00025885,3]
[358895900,1745532644378,-1685.30854487,0.00025885,3]
[358895902,1745532644390,-963.39143421,0.00025885,3]
[358895904,1745532644403,-1164.40000008,0.00025885,3]
[358895907,1745532644416,-1310.29847379,0.00025885,3]
[358895909,1745532644428,-2239.99555988,0.00025885,3]
[358895911,1745532644441,-333.81892786,0.00025885,3]
[358895913,1745532644453,-6162.73586877,0.00025885,3]
[358895932,1745532644635,-24769.11683178,0.0002489,2]
[358896033,1745532645675,-37038.9099796,0.0002489,2]
[358896162,1745532646985,-2209.03318862,0.0002489,2]
[358896164,1745532646994,-7097.46681138,0.00025885,3]
[358896166,1745532647006,-634.40000001,0.00025885,3]
[358896483,1745533041583,175.19,0.00018975,2]
[358896487,1745533327075,1814.27075288,0.0003,120]
[358896490,1745533519905,180.86481735,9e-05,2]
[358896491,1745533526139,231.47741334,0.000108,2]
[358896492,1745533527989,329.29148111,0.00011,2]
[358896493,1745533536772,4057.87819587,9e-05,2]
[358896494,1745533555418,823.17425323,6.94e-05,2]
[358896555,1745533632293,1795.42988383,0.00015,2]
[358896556,1745533635893,1856.69395527,0.00015,2]
[358896557,1745533635917,8194.78525065,0.00015,2]
[358896580,1745533831947,-167.3796736,0.000198,2]
[358896581,1745533831957,-198.02500503,0.0001983,2]
[358896582,1745533831969,-2301.88406994,0.0001987,2]
[358896583,1745533831979,-1200.0,0.00019899,2]
[358896584,1745533831989,-300.0,0.00019899,2]
[358896585,1745533832000,-567.07412978,0.000199,2]
[358896586,1745533832009,-167.3796736,0.000199,2]
[358896587,1745533832020,-3131.85494826,0.000199,2]
[358896588,1745533832029,-636.32007558,0.000199,2]
[358896589,1745533832039,-636.32007557,0.000199,2]
[358896591,1745533832049,-185.43049777,0.00019973,2]
[358896593,1745533832059,-479.67483156,0.00019973,2]
[358896595,1745533832069,-500.0,0.00019973,2]
[358896596,1745533832079,-401.64372359,0.00019973,2]
[358896599,1745533832089,-627.50041646,0.00019973,2]
[358896601,1745533832099,-158.49607078,0.00019973,2]
[358896602,1745533832108,-172.01240491,0.00019973,2]
[358896605,1745533832118,-500.0,0.00019973,2]
[358896606,1745533832128,-591.31141698,0.0001999,2]
[358896608,1745533832137,-850.0,0.00019997,2]
[358896611,1745533832147,-500.0,0.00019998,2]
[358896612,1745533832158,-500.0,0.00019998,2]
[358896614,1745533832168,-500.0,0.00019998,2]
[358896616,1745533832178,-500.0,0.00019998,2]
[358896618,1745533832187,-500.0,0.00019998,2]
[358896620,1745533832197,-500.0,0.00019998,2]
[358896623,1745533832207,-507.79492221,0.00019998,2]
[358896626,1745533832217,-500.0,0.00019998,2]
[358896629,1745533832227,-500.0,0.00019998,2]
[358896632,1745533832236,-500.0,0.00019998,2]
[358896635,1745533832246,-500.0,0.00019998,2]
[358896638,1745533832255,-500.0,0.00019998,2]
[358896640,1745533832265,-500.0,0.00019998,2]
[358896642,1745533832274,-500.0,0.00019998,2]
[358896644,1745533832284,-500.0,0.00019998,2]
[358896646,1745533832294,-500.0,0.00019998,2]
[358896647,1745533832303,-500.0,0.00019998,2]
[358896650,1745533832313,-500.0,0.00019998,2]
[358896651,1745533832323,-500.0,0.00019998,2]
[358896654,1745533832333,-500.0,0.00019998,2]
[358896655,1745533832343,-500.0,0.00019998,2]
[358896658,1745533832353,-550.0,0.00019998,2]
[358896659,1745533832362,-500.0,0.00019998,2]
[358896661,1745533832372,-500.0,0.00019998,2]
[358896662,1745533832382,-500.0,0.00019998,2]
[358896664,1745533832392,-500.0,0.00019998,2]
[358896666,1745533832401,-500.0,0.00019998,2]
[358896668,1745533832411,-500.0,0.00019998,2]
[358896670,1745533832421,-49101.68066811,0.00019999,2]
[358896672,1745533832431,-499.99,0.00019999,2]
[358896674,1745533832444,-500.0,0.00019999,2]
[358896676,1745533832454,-500.0,0.00019999,2]
[358896678,1745533832464,-500.0,0.00019999,2]
[358896680,1745533832474,-1027.3,0.00019999,2]
[358896682,1745533832486,-511.64,0.00019999,2]
[358896684,1745533832495,-21881.04162313,0.00019999,2]
[358896686,1745533832505,-80475.39903105,0.0002,2]
[358896689,1745533832519,-96377.98821439,0.0002,2]
[358896691,1745533832531,-2188.48959416,0.0002,2]
[358897175,1745533837895,-1509.98033706,0.0002,2]
[358897365,1745533840345,-23989.60553661,0.0002,2]
[358897553,1745533842236,-0.00988087,0.0002,2]
[358897846,1745533845873,-623.64023157,0.0002,2]
[358897847,1745533846090,-3129.68064164,0.0002,2]
[358897848,1745533846107,-1551.26833303,0.0002,2]
[358897877,1745534011049,250.0,0.00017,2]
[358897878,1745534012123,300.0,0.00019,2]
[358897880,1745534086948,372.09,0.00018306,2]
[358897881,1745534214081,-207.2,0.00045884,30]
[358897882,1745534214108,-6054.27997977,0.00045884,60]
[358897883,1745534214140,-188.48398177,0.00045884,120]
[358897884,1745534214505,-5392.62182221,0.00045884,30]
[358897885,1745534214530,-3682.48597211,0.00045884,30]
[358897886,1745534214555,-707.67477638,0.00045884,30]
[358897887,1745534214579,-4147.90632594,0.00045884,30]
[358897888,1745534214605,-4500.0,0.00045884,30]
[358897889,1745534214629,-161.69627494,0.00045884,30]
[358897890,1745534214654,-1007.5719111,0.00045884,30]
[358897891,1745534214679,-248.8710732,0.00045884,30]
[358897892,1745534214706,-4974.28114946,0.00045884,30]
[358897893,1745534214731,-174.57988677,0.00045884,30]
[358897894,1745534214758,-4474.95545226,0.00045884,30]
[358897895,1745534214783,-3905.01820377,0.00045884,30]
[358897896,1745534214809,-997.0,0.00045884,30]
[358897897,1745534214833,-205.53944247,0.00045884,30]
[358897898,1745534214858,-511.08606459,0.00045884,30]
[358897899,1745534214884,-269.2155424,0.00045884,30]
[358897900,1745534214910,-418.86126164,0.00045884,30]
[358897901,1745534214935,-236.38687372,0.00045884,30]
[358897902,1745534214960,-296.80606272,0.00045884,30]
[358897903,1745534214986,-208.09989037,0.00045884,30]
[358897904,1745534215011,-228.28542667,0.00045884,30]
[358897905,1745534215040,-50000.0,0.00045884,30]
[358897906,1745534215068,-50000.0,0.00045884,31]
[358897907,1745534215096,-50000.0,0.00045884,32]
[358897908,1745534215124,-50000.0,0.00045884,33]
[358897909,1745534215153,-50000.0,0.00045884,34]
[358897910,1745534215180,-379.72145764,0.00045884,30]
[358897911,1745534215205,-2000.16266135,0.00045884,30]
[358897912,1745534215231,-1563.82135956,0.00045884,31]
[358897913,1745534215258,-900.0,0.00045884,120]
[358897914,1745534215282,-1361.99268992,0.00045884,60]
[358897915,1745534215306,-2330.80906166,0.00045884,120]
[358897916,1745534215330,-1860.0,0.00045884,120]
[358897917,1745534215353,-1999.999992,0.00045884,120]
[358897918,1745534215378,-1048.7951607,0.00045884,120]
[358897919,1745534215403,-495.9358478,0.00045884,90]
[358897920,1745534215430,-211.80994205,0.00045884,60]
[358897921,1745534215456,-682.00308945,0.00045884,120]
[358897922,1745534215482,-193.42152217,0.00045884,60]
[358897923,1745534215508,-1992.23109427,0.00045884,120]
[358897924,1745534215533,-329.64352483,0.00045884,120]
[358897925,1745534215558,-819.10697467,0.00045884,120]
[358897926,1745534215583,-3239.86641264,0.00045884,120]
[358897927,1745534215608,-823.25158604,0.00045884,120]
[358897928,1745534215637,-1293.28249326,0.00045884,120]
[358897929,1745534215661,-312.91215193,0.00045884,120]
[358897930,1745534215685,-3725.92979264,0.00045884,120]
[358897931,1745534215710,-614.10330869,0.00045884,120]
[358897932,1745534215734,-328.88751677,0.00045884,120]
[358897933,1745534215762,-424.3273489,0.00045884,120]
[358897934,1745534215786,-7226.17690149,0.00045884,120]
[358897935,1745534215812,-3446.78392378,0.00045884,30]
[358897936,1745534215838,-1987.26024941,0.00045884,120]
[358897937,1745534215863,-721.53614041,0.00045884,120]
[358897938,1745534215889,-1759.59176217,0.00045884,120]
[358897939,1745534215914,-756.4754945,0.00045884,120]
[358897940,1745534215939,-964.81616986,0.00045884,120]
[358897941,1745534215964,-5361.40201591,0.00045884,120]
[358897942,1745534215989,-195.0,0.00045884,120]
[358897943,1745534216014,-659.0,0.00045884,120]
[358897944,1745534216040,-359.0,0.00045884,40]
[358897945,1745534216065,-200.0,0.00045884,30]
[358897946,1745534216091,-200.0,0.00045884,30]
[358897947,1745534216115,-200.0,0.00045884,30]
[358897948,1745534216140,-200.0,0.00045884,30]
[358897949,1745534216164,-200.0,0.00045884,30]
[358897950,1745534216188,-200.0,0.00045884,30]
[358897951,1745534216213,-200.0,0.00045884,30]
[358897952,1745534216237,-200.0,0.00045884,30]
[358897953,1745534216261,-200.0,0.00045884,30]
[358897954,1745534216287,-200.0,0.00045884,30]
[358897955,1745534216311,-200.0,0.00045884,30]
[358897956,1745534216336,-200.0,0.00045884,30]
[358897957,1745534216361,-200.0,0.00045884,30]
[358897958,1745534216386,-200.0,0.00045884,30]
[358897959,1745534216412,-200.0,0.00045884,30]
[358897960,1745534216437,-200.0,0.00045884,30]
[358897961,1745534216462,-200.0,0.00045884,30]
[358897962,1745534216486,-200.0,0.00045884,30]
[358897963,1745534216511,-200.0,0.00045884,30]
[358897964,1745534216542,-200.0,0.00045884,30]
[358897965,1745534216567,-200.0,0.00045884,30]
[358897966,1745534216593,-357.599999,0.00045884,30]
[358897967,1745534216619,-200.0,0.00045884,30]
[358897968,1745534216643,-200.0,0.00045884,30]
[358897969,1745534216668,-200.0,0.00045884,30]
[358897970,1745534216693,-200.0,0.00045884,30]
[358897971,1745534216717,-200.0,0.00045884,30]
[358897972,1745534216748,-200.0,0.00045884,30]
[358897973,1745534216773,-200.0,0.00045884,30]
[358897974,1745534216798,-200.0,0.00045884,30]
[358897975,1745534216823,-200.0,0.00045884,30]
[358897976,1745534216848,-200.0,0.00045884,30]
[358897977,1745534216873,-200.0,0.00045884,30]
[358897978,1745534216897,-200.0,0.00045884,30]
[358897979,1745534216923,-200.0,0.00045884,30]
[358897980,1745534216948,-200.0,0.00045884,30]
[358897981,1745534216973,-200.0,0.00045884,30]
[358897982,1745534216997,-200.0,0.00045884,30]
[358897983,1745534217023,-200.0,0.00045884,30]
[358897984,1745534217048,-200.0,0.00045884,30]
[358897985,1745534217073,-200.0,0.00045884,30]
[358897986,1745534217099,-200.0,0.00045884,30]
[358897987,1745534217125,-200.0,0.00045884,30]
[358897988,1745534217372,-357.599999,0.00045884,30]
[358897989,1745534217399,-200.0,0.00045884,30]
[358897990,1745534217425,-200.0,0.00045884,30]
[358897991,1745534217453,-200.0,0.00045884,30]
[358897992,1745534217480,-200.0,0.00045884,30]
[358897993,1745534217506,-200.0,0.00045884,30]
[358897994,1745534217534,-200.0,0.00045884,30]
[358897995,1745534217561,-200.0,0.00045884,30]
[358897996,1745534217586,-200.0,0.00045884,30]
[358897997,1745534217610,-200.0,0.00045884,30]
[358897998,1745534217637,-20823.44901386,0.00045884,30]
[358897999,1745534217662,-500.0,0.00045884,120]
[358898000,1745534217688,-1436.0,0.00045884,30]
[358898001,1745534217712,-250.0,0.00045884,30]
[358898002,1745534217738,-2000.0,0.00045884,120]
[358898003,1745534217767,-843.0,0.00045884,30]
[358898004,1745534217792,-172.4,0.00045884,30]
[358898005,1745534217817,-499.999999,0.00045884,120]
[358898006,1745534217843,-20395.62366512,0.00045884,120]
[358898007,1745534217867,-104382.2193469,0.00045884,120]
[358898008,1745534217891,-311.2148552,0.00045884,120]
[358898009,1745534217916,-23884.0108641,0.00045884,45]
[358898010,1745534217941,-238816.5806001,0.00045884,30]
[358898011,1745534217966,-421.0,0.00045884,30]
[358898012,1745534217991,-2756.19002271,0.00045884,120]
[358898013,1745534218017,-2822.1835515,0.00045884,40]
[358898014,1745534218043,-1000.0,0.00045884,120]
[358898015,1745534218069,-1000.0,0.00045884,120]
[358898016,1745534218097,-1443.0,0.00045884,120]
[358898017,1745534218125,-1000.0,0.00045884,30]
[358898018,1745534218151,-1000.0,0.00045884,30]
[358898019,1745534218177,-211.0,0.00045884,30]
[358898020,1745534218201,-308.0,0.00045884,120]
[358898021,1745534218226,-200.0,0.00045884,30]
[358898022,1745534218252,-194.79027855,0.00045884,60]
[358898023,1745534218278,-156.09267722,0.00045884,120]
[358898024,1745534218302,-492.61955408,0.00045884,30]
[358898025,1745534218329,-2077.187371,0.00045884,30]
[358898026,1745534218355,-182.89561039,0.00045884,30]
[358898027,1745534218379,-532.74408877,0.00045884,30]
[358898028,1745534218404,-501.02106772,0.00045884,120]
[358898029,1745534218428,-1478.4147685,0.00045884,120]
[358898030,1745534218453,-916.66965632,0.00045884,30]
[358898031,1745534218476,-721.65471108,0.00045884,30]
[358898032,1745534218500,-89475.89072805,0.00045884,30]
[358898033,1745534218525,-2301.13194882,0.00045884,120]
[358898034,1745534218549,-1071.0,0.00045884,30]
[358898035,1745534218573,-1071.0,0.00045884,30]
[358898036,1745534218598,-1071.0,0.00045884,30]
[358898037,1745534218623,-1071.0,0.00045884,30]
[358898038,1745534218650,-1071.0,0.00045884,30]
[358898039,1745534218675,-1591.19,0.00045884,120]
[358898040,1745534218701,-1591.19,0.00045884,120]
[358898041,1745534218727,-1591.19,0.00045884,120]
[358898042,1745534218753,-1591.19,0.00045884,120]
[358898043,1745534218779,-1591.19,0.00045884,120]
[358898044,1745534218805,-1591.19,0.00045884,120]
[358898045,1745534218830,-1591.19,0.00045884,120]
[358898046,1745534218856,-1591.19,0.00045884,120]
[358898047,1745534218881,-1591.19,0.00045884,120]
[358898048,1745534218907,-1591.19,0.00045884,120]
[358898049,1745534218932,-1591.19,0.00045884,120]
[358898050,1745534218957,-1591.19,0.00045884,120]
[358898051,1745534218982,-1591.19,0.00045884,120]
[358898052,1745534219013,-1591.19,0.00045884,120]
[358898053,1745534219039,-1591.19,0.00045884,120]
[358898054,1745534219065,-1591.19,0.00045884,120]
[358898055,1745534219091,-1591.19,0.00045884,120]
[358898056,1745534219116,-1591.19,0.00045884,120]
[358898057,1745534219142,-1591.19,0.00045884,120]
[358898058,1745534219166,-1591.19,0.00045884,120]
[358898059,1745534219192,-1591.19,0.00045884,120]
[358898060,1745534219219,-1591.19,0.00045884,120]
[358898061,1745534219246,-1591.19,0.00045884,120]
[358898062,1745534219274,-1591.21242766,0.00045884,120]
[358898063,1745534220711,1829.99164229,0.00045884,30]
[358898064,1745534225587,500.0,0.00045884,120]
[358898065,1745534226286,518.5,0.00045884,120]
[358898066,1745534226973,537.6845,0.00045884,120]
[358898067,1745534228127,200.0,0.00045884,120]
[358898068,1745534228160,557.5788265,0.00045884,120]
[358898069,1745534228270,151.0,0.00045884,120]
[358898070,1745534228864,207.4,0.00045884,120]
[358898071,1745534228899,578.20924308,0.00045884,120]
[358898072,1745534228984,151.0,0.00045884,120]
[358898073,1745534229553,599.60298507,0.00045884,120]
[358898074,1745534229637,215.0738,0.00045884,120]
[358898075,1745534229688,151.0,0.00045884,120]
[358898076,1745534230302,621.78829552,0.00045884,120]
[358898077,1745534230394,223.0315306,0.00045884,120]
[358898078,1745534230428,151.0,0.00045884,120]
[358898079,1745534231019,621.78829552,0.00045884,120]
[358898080,1745534231138,231.28369723,0.00045884,120]
[358898081,1745534232055,239.84119403,0.00045884,120]
[358898082,1745534232592,248.71531821,0.00045884,120]
[358898083,1745534233300,257.91778498,0.00045884,120]
[358898084,1745534234001,267.46074303,0.00045884,120]
[358898085,1745534235469,277.35679052,0.00045884,120]
[358898086,1745534235631,287.61899177,0.00045884,120]
[358898087,1745534236146,298.26089446,0.00045884,120]
[358898088,1745534236882,309.29654756,0.00045884,120]
[358898089,1745534237666,320.74051982,0.00045884,120]
[358898090,1745534238425,332.60791905,0.00045884,120]
[358898091,1745534239165,344.91441206,0.00045884,120]
[358898092,1745534239937,357.6762453,0.00045884,120]
[358898093,1745534240681,370.91026638,0.00045884,120]
[358898094,1745534241419,384.63394623,0.00045884,120]
[358898095,1745534241968,211.0,0.00045884,30]
[358898096,1745534242218,384.63394623,0.00045884,120]
[358898097,1745534271548,-165.7047,0.0002475,34]
[358898098,1745534271585,-165.7047,0.000249,34]
[358898099,1745534271614,-165.7047,0.0002506,34]
[358898100,1745534271641,-165.7047,0.0002537,35]
[358898101,1745534271668,-165.7047,0.0002569,36]
[358898102,1745534271700,-165.7047,0.00026,36]
[358898103,1745534271729,-1341.68,0.00027425,30]
[358898104,1745534271778,-150.05,0.00032877,30]
[358898105,1745534271807,-1889.312,0.00033,30]
[358898106,1745534271836,-3400.0,0.00034,120]
[358898107,1745534271864,-500.0,0.0003432,30]
[358898108,1745534271892,-154.00231183,0.000349,30]
[358898109,1745534271921,-370.36573614,0.00035,30]
[358898110,1745534271949,-1137.25728401,0.00035,30]
[358898111,1745534271976,-414.74371918,0.00035,30]
[358898112,1745534272003,-454.88304085,0.00035,30]
[358898113,1745534272032,-19075.38615599,0.0003511,30]
[358898114,1745534272059,-150.0,0.00035616,30]
[358898115,1745534272092,-1341.68,0.00036139,30]
[358898116,1745534272120,-70171.3407154,0.000365,120]
[358898117,1745534272152,-513.91,0.00037808,60]
[358898118,1745534272179,-513.92,0.00037839,80]
[358898119,1745534272206,-513.92,0.00037869,100]
[358898120,1745534272234,-513.92,0.000379,120]
[358898121,1745534272267,-150.05,0.00038356,30]
[358898122,1745534272294,-1226.052385,0.00038356,60]
[358898123,1745534272323,-609.529,0.00038434,30]
[358898124,1745534272351,-259.57063,0.000387,30]
[358898125,1745534272379,-357.599999,0.00039,58]
[358898126,1745534272406,-357.6,0.00039,58]
[358898127,1745534272432,-199.43225266,0.00039,120]
[358898128,1745534272458,-987.60455,0.00039,40]
[358898129,1745534272485,-192.55937112,0.00039589,30]
[358898130,1745534272513,-200.0,0.0004,61]
[358898131,1745534272539,-200.0,0.0004,61]
[358898132,1745534272566,-3517.920594,0.0004,30]
[358898133,1745534272593,-202.0,0.0004,60]
[358898134,1745534272622,-500.0,0.0004,30]
[358898135,1745534272649,-1800.0,0.0004,41]
[358898136,1745534272675,-157.75,0.0004,30]
[358898137,1745534272702,-157.75,0.0004,30]
[358898138,1745534272727,-629.0,0.0004,120]
[358898139,1745534272753,-548.0,0.0004025,30]
[358898140,1745534272787,-500.0,0.000405,30]
[358898141,1745534272816,-1223.0354849,0.00040569,30]
[358898142,1745534272842,-1333.0,0.00040658,120]
[358898143,1745534272870,-5023.09585,0.0004085,30]
[358898144,1745534272902,-1156.15,0.000409,31]
[358898145,1745534272934,-1156.15,0.000409,31]
[358898146,1745534272968,-1156.15,0.000409,31]
[358898147,1745534273001,-1156.15,0.000409,31]
[358898148,1745534273033,-1156.15,0.000409,31]
[358898149,1745534273066,-1156.15,0.000409,31]
[358898150,1745534273098,-1156.15,0.000409,31]
[358898151,1745534273130,-1156.15,0.000409,31]
[358898152,1745534273527,-1156.15,0.000409,31]
[358898153,1745534273561,-1156.15,0.000409,31]
[358898154,1745534273603,-1156.15,0.000409,31]
[358898155,1745534273636,-1156.15,0.000409,31]
[358898156,1745534273661,-2110.0,0.0004094,30]
[358898157,1745534273688,-500.0,0.0004095,30]
[358898158,1745534273714,-200.0,0.00041,64]
[358898159,1745534273740,-200.0,0.00041,64]
[358898160,1745534273768,-882782.0,0.00041,60]
[358898161,1745534273795,-10000.0,0.00041,120]
[358898162,1745534273824,-1800.0,0.00041,42]
[358898163,1745534273850,-3281.58097665,0.00041,120]
[358898164,1745534273876,-500.0,0.00041,120]
[358898165,1745534273903,-500.0,0.00041055,30]
[358898166,1745534273930,-150.5,0.00041066,120]
[358898167,1745534273955,-150.5,0.00041076,120]
[358898168,1745534273982,-150.5,0.00041086,120]
[358898169,1745534274014,-6077.09,0.00041095,120]
[358898170,1745534274043,-900.0,0.00041122,30]
[358898171,1745534274073,-500.0,0.0004116,30]
[358898172,1745534274101,-327.89688101,0.0004116,30]
[358898173,1745534274128,-22173.23,0.000412,60]
[358898174,1745534274156,-900.0,0.00041231,30]
[358898175,1745534274183,-150.0,0.00041277,30]
[358898176,1745534274210,-500.0,0.00041299,30]
[358898177,1745534274237,-552.58487564,0.00041301,30]
[358898178,1745534274266,-150.0,0.00041425,30]
[358898179,1745534274292,-2110.0,0.0004144,30]
[358898180,1745534274323,-1400.0,0.0004145,30]
[358898181,1745534274351,-900.0,0.00041467,30]
[358898182,1745534274378,-500.0,0.00041485,30]
[358898183,1745534274407,-500.0,0.00041496,30]
[358898184,1745534274435,-150.042505,0.00041498,120]
[358898185,1745534274462,-1400.0,0.00041507,30]
[358898186,1745534274491,-1400.0,0.00041512,30]
[358898187,1745534274518,-500.0,0.00041549,30]
[358898188,1745534274546,-150.0,0.00041573,30]
[358898189,1745534274572,-1400.0,0.00041579,30]
[358898190,1745534274598,-1400.0,0.00041597,30]
[358898191,1745534274625,-22173.23,0.000416,60]
[358898192,1745534274652,-509.85911948,0.00041602,30]
[358898193,1745534274679,-900.0,0.00041616,30]
[358898194,1745534274706,-500.0,0.00041677,30]
[358898195,1745534274731,-1400.0,0.000417,30]
[358898196,1745534274757,-500.0,0.00041708,30]
[358898197,1745534274785,-150.0,0.00041721,30]
[358898198,1745534274811,-355.71,0.00041786,60]
[358898199,1745534274840,-900.0,0.0004183,30]
[358898200,1745534274866,-152.01,0.00041839,120]
[358898201,1745534274893,-150.0,0.00041868,30]
[358898202,1745534274920,-900.0,0.0004189,30]
[358898203,1745534274949,-3061.99124045,0.000419,120]
[358898204,1745534274978,-1071.0,0.00041909,30]
[358898205,1745534275007,-900.0,0.00041915,30]
[358898206,1745534275035,-2110.0,0.0004194,30]
[358898207,1745534275063,-232.42,0.0004199,120]
[358898208,1745534275091,-1070.34,0.00042,120]
[358898209,1745534275117,-1039.0,0.00042,30]
[358898210,1745534275145,-200.0,0.00042,67]
[358898211,1745534275173,-200.0,0.00042,67]
[358898212,1745534275199,-1800.0,0.00042,43]
[358898213,1745534275226,-572.79547395,0.00042,120]
[358898214,1745534275253,-22173.23,0.00042,60]
[358898215,1745534275278,-500.0,0.00042,120]
[358898216,1745534275306,-500.0,0.00042,120]
[358898217,1745534275333,-500.0,0.00042,30]
[358898218,1745534275359,-500.0,0.00042,30]
[358898219,1745534275384,-500.0,0.00042,30]
[358898220,1745534275410,-500.0,0.00042,30]
[358898221,1745534275437,-500.0,0.00042,30]
[358898222,1745534275464,-500.0,0.00042,30]
[358898223,1745534275491,-500.0,0.00042,30]
[358898224,1745534275518,-615.76452328,0.00042,30]
[358898225,1745534275546,-150.0,0.00042016,30]
[358898226,1745534275573,-1400.0,0.00042039,30]
[358898227,1745534275599,-1400.0,0.00042058,30]
[358898228,1745534275626,-1400.0,0.00042067,30]